Cogmind - Beta 14 *** ADVENTURER MODE // 2024.09.20 @ 07:09:04 // Winter2019/RPGLIKE Player: Gallgagger Result: Heading to fleet! Performance ------------- Evolutions (9) 4500 Regions Visited (25) 5000 Robots Destroyed (902) 4510 Value Destroyed (54753) 54753 Prototype IDs (158) 3160 Alien Tech Used (11) 2200 Bonus (68601) 68601 TOTAL SCORE: 142724 Bonus ------- Triggered High Security 500 Triggered Max Security 2000 High Alert Combat Kills 46287 Follower Combat Kills 2414 Network Hubs Disabled 200 Registered with UFD 300 Met Zhirov 300 Built Enhanced Grunts 300 A7 Reached Mainframe 300 Met R17 at Cetus 500 Used Core Reset Matrix 3000 Met R17 at Research 2000 Scanned by Researcher 1000 Pursued by Intercept 1000 Integrated Exoskeleton 5000 Destroyed MAIN.C Guards 500 Win 3000 Cogmind --------- Core Integrity 411/2450 Matter 300/300 Energy 198/200 System Corruption 0% Temperature Cool (0) Movement Walking (30) Location To Fleet Rendezvous Parts ------- > --- POWER (1) -------- (None) > --- PROPULSION (3) --- Sigix Exoskeleton > --- UTILITY (3) ------ Advanced Quantum Shading Machine Experimental Core Analyzer Experimental Core Analyzer > --- WEAPON (4) ------- Segregator Plasma Sword Sigix Broadsword > --- INVENTORY (4) ---- CPS Tube (2) CPS Tube (2) CPS Tube (1) Peak State ------------ > --- POWER ------------ Light Antimatter Reactor > --- PROPULSION ------- Sigix Exoskeleton > --- UTILITY ---------- Advanced Quantum Shading Machine Experimental Core Analyzer Experimental Core Analyzer > --- WEAPON ----------- Plasma Sword Vibroblade Sigix Broadsword > --- INVENTORY -------- CPS Tube CPS Tube CPS Tube Power Sword [Rating: 243] Favorites ----------- Power Light Antimatter Reactor Engine Cooled Deuterium Engine Power Core Light Nuclear Core Reactor Light Antimatter Reactor Propulsion Improved VTOL Module Leg Sigix Exoskeleton Wheel Compact Wheel Hover Unit Hover Unit Flight Unit Improved VTOL Module Utility Microactuators Device Microactuators Processor Core Analyzer Protection Gun Armor Weapon Greatsword Energy Gun Beam Rifle Ballistic Gun Light Assault Rifle Special Weapon Flamer Impact Weapon Power Maul Slashing Weapon Greatsword Piercing Weapon Enhanced Force Lance Build | -11 -10 -10 -10 -8 -7 -7 -7 -7 -5 -5 -5 -5 -4 -4 -4 -4 -4 -4 -3 -3 -2 -2 -2 -1 -1 ------- Run | Yrd Mat Min Sub Mat Fac Sto Rec Scr Fac Upp Upp Zhi Pro Fac Ext Cet Arc Hub Res Tes Res Qua Sec Acc Com Slots Evolved 22 | 4 2 . . 4 4 . . 1 2 . . . 2 . . 1 . . . . . . 1 . 1 Power 3 | 1 . . . . . . . . . . . . 2 . . . . . . . . . . . . Propulsion 4 | 1 2 . . . . . . . 1 . . . . . . . . . . . . . . . . Utility 10 | 1 . . . 2 4 . . 1 1 . . . . . . 1 . . . . . . . . . Weapon 5 | 1 . . . 2 . . . . . . . . . . . . . . . . . . 1 . 1 Parts Attached 148 | 6 11 5 4 22 15 8 . 1 8 . . 2 6 2 3 2 . 6 9 4 2 4 18 1 9 Power 21 | 2 1 2 . . . 2 . . . . . . 5 . . 1 . . 3 1 . 2 2 . . Engine 4 | 2 . . . . . 1 . . . . . . 1 . . . . . . . . . . . . Core 6 | . 1 2 . . . 1 . . . . . . 1 . . . . . . . . 1 . . . Reactor 11 | . . . . . . . . . . . . . 3 . . 1 . . 3 1 . 1 2 . . Propulsion 37 | 2 5 . . 10 2 . . . 3 . . . . 2 . . . 6 2 2 . 1 2 . . Treads . | . . . . . . . . . . . . . . . . . . . . . . . . . . Leg . | . . . . . . . . . . . . . . . . . . . . . . . . . . Wheel 2 | 2 . . . . . . . . . . . . . . . . . . . . . . . . . Hover 5 | . 5 . . . . . . . . . . . . . . . . . . . . . . . . Flight 30 | . . . . 10 2 . . . 3 . . . . 2 . . . 6 2 2 . 1 2 . . Utility 50 | . 2 3 2 3 6 6 . 1 5 . . 2 1 . 3 1 . . 2 1 . . 11 . 1 Device 33 | . 1 3 1 . 2 6 . . 4 . . 2 1 . 3 . . . . 1 . . 9 . . Storage . | . . . . . . . . . . . . . . . . . . . . . . . . . . Processor 15 | . 1 . . 3 4 . . 1 1 . . . . . . . . . 2 . . . 2 . 1 Hackware . | . . . . . . . . . . . . . . . . . . . . . . . . . . Protection 2 | . . . 1 . . . . . . . . . . . . 1 . . . . . . . . . Artifact . | . . . . . . . . . . . . . . . . . . . . . . . . . . Weapon 40 | 2 3 . 2 9 7 . . . . . . . . . . . . . 2 . 2 1 3 1 8 Energy Gun 7 | . 3 . 1 3 . . . . . . . . . . . . . . . . . . . . . Energy Cannon . | . . . . . . . . . . . . . . . . . . . . . . . . . . Ballistic Gun 2 | 2 . . . . . . . . . . . . . . . . . . . . . . . . . Ballistic Cannon . | . . . . . . . . . . . . . . . . . . . . . . . . . . Launcher . | . . . . . . . . . . . . . . . . . . . . . . . . . . Special Weapon 2 | . . . 1 . . . . . . . . . . . . . . . . . . . . . 1 Impact Weapon 6 | . . . . 6 . . . . . . . . . . . . . . . . . . . . . Slashing Weapon 21 | . . . . . 6 . . . . . . . . . . . . . 2 . 1 1 3 1 7 Piercing Weapon 2 | . . . . . 1 . . . . . . . . . . . . . . . 1 . . . . Special Melee Weapon . | . . . . . . . . . . . . . . . . . . . . . . . . . . Unidentified Prototypes 19 | . . 1 1 3 1 3 . . . . . 2 . . . . . . . . . 1 6 . 1 Corrupted Parts 1 | . . . . . . . . . . . . . . . . . . . . . 1 . . . . System Corruption 2 | . . . . . . . . . . . . . . . . . . . . . 2 . . . . Parts Lost 6 | . . . 2 . . . . . 2 . . . . . . . . . . . . . . . 2 Power 1 | . . . . . . . . . . . . . . . . . . . . . . . . . 1 Propulsion 3 | . . . 2 . . . . . 1 . . . . . . . . . . . . . . . . Utility 1 | . . . . . . . . . 1 . . . . . . . . . . . . . . . . Weapon 1 | . . . . . . . . . . . . . . . . . . . . . . . . . 1 Highest Loss Streak 1 | . . . 1 . . . . . 1 . . . . . . . . . . . . . . . 1 To Critical Strikes . | . . . . . . . . . . . . . . . . . . . . . . . . . . Average Slot Usage (%) 78 | . 84 92 83 80 85 80 80 80 80 78 78 77 77 74 75 76 76 77 85 88 89 92 85 70 70 Engine 1 | . 12 9 . . . 4 5 4 4 4 4 4 1 . . . . . . . . . . . . Core 3 | . 10 10 18 14 10 5 5 4 4 4 4 4 1 . . . . . . . . 1 2 . . Reactor 6 | . . . . . . . . . . . . . 8 12 12 11 11 11 11 11 11 8 7 10 8 Leg 3 | . . . . . . . . . . . . . . . . . . . . . . . 2 10 9 Hover 3 | . 21 40 33 4 . . . . . . . . . . . . . . . . . . . . . Flight 10 | . . . . 21 21 20 20 19 20 17 17 17 16 16 16 15 15 16 19 19 19 19 14 . . Device 11 | . 5 9 9 5 6 10 10 9 9 17 17 16 16 14 15 15 15 15 11 11 11 11 13 20 11 Processor 17 | . 2 2 . 9 24 25 25 27 26 21 21 21 20 20 20 19 19 19 22 23 23 23 18 10 15 Protection 3 | . . . 2 7 5 5 5 4 4 4 4 4 4 4 4 4 7 7 7 7 7 7 5 . . Energy Gun 1 | . 3 20 14 7 . . . . . . . . . . . . . . . . . . . . . Impact Weapon 1 | . . . . 8 10 . . . . . . . . . . . . . . . . . . . . Slashing Weapon 13 | . . . . . 6 10 10 9 8 8 8 8 8 8 8 7 7 7 12 15 15 15 15 20 25 Peak Build Rating 243 | 6 16 26 25 55 75 82 79 89 116 115 115 115 130 125 132 141 141 144 168 175 175 196 230 230 243 Average Rating 146 | 4 10 19 19 38 68 78 79 85 97 115 115 113 122 123 129 133 141 143 156 165 170 185 206 230 238 On Entrance 110 | . 6 16 17 24 55 75 79 79 89 115 115 115 115 125 122 132 141 141 144 162 169 175 196 230 230 Naked Turns . | . . . . . . . . . . . . . . . . . . . . . . . . . . Heaviest Build 79 | 10 17 30 21 26 28 41 37 37 41 41 41 41 70 70 59 66 66 66 79 69 75 76 77 28 31 Greatest Support 100 | 32 32 24 28 30 32 37 37 37 70 45 45 70 70 73 73 73 73 75 76 78 78 78 100 100 100 Greatest Overweight (x) 1 | . 1 1 1 1 1 1 . . . . . . . . 1 . . . 1 . . . 1 . . Average Overweight (x) . | . . . . . . . . . . . . . . . . . . . . . . . . . . Largest Inventory Capacity 4 | . 2 2 2 2 2 3 3 3 3 4 4 4 4 4 4 4 4 4 4 4 4 4 4 4 4 Average Capacity 3 | . . 2 2 2 2 2 3 3 3 3 4 4 4 4 4 4 4 4 4 4 4 4 4 4 4 Most Carried 4 | . 2 2 2 2 2 3 1 3 3 3 3 3 4 4 4 4 4 4 4 4 4 4 4 4 4 Average Carried 3 | . . 1 2 2 1 1 1 2 2 2 3 3 3 4 4 4 4 4 3 3 3 3 3 4 3 Final Capacity 4 | . 2 2 2 2 2 3 3 3 3 4 4 4 4 4 4 4 4 4 4 4 4 4 4 4 4 Final Carried 4 | . 2 2 2 2 2 1 1 3 2 3 3 3 4 4 4 4 4 4 4 4 3 4 4 4 3 Class Distribution -------------------- 50% | Hacker-Sprinter 32% | Hacker-Sigix 9% | Scavenger-Mutant Dominant Class ---------------- Mutant | -10/Materials Scavenger-Mutant | -10/Mines Scavenger-Mutant | -10/Subcaves Hacker-Sprinter | -8/Materials Hacker-Sprinter | -7/Factory Hacker-Sprinter | -7/Storage Hacker-Sprinter | -7/Recycling Hacker-Sprinter | -7/Scraptown Hacker-Sprinter | -5/Factory Hacker-Sprinter | -5/Upper Caves Hacker-Sprinter | -5/Upper Caves Hacker-Sprinter | -5/Zhirov Hacker-Sprinter | -4/Proximity Caves Hacker-Sprinter | -4/Factory Hacker-Sprinter | -4/Extension Commander-Sprinter | -4/Cetus Commander-Sprinter | -4/Archives Hacker-Sprinter | -4/Hub_04(d) Hacker-Sprinter | -3/Research Hacker-Sprinter | -3/Testing Hacker-Sprinter | -2/Research Hacker-Sprinter | -2/Quarantine Hacker-Sprinter | -2/Section 7 Hacker-Sigix | -1/Access Hacker-Sigix | -1/Command Resources | -11 -10 -10 -10 -8 -7 -7 -7 -7 -5 -5 -5 -5 -4 -4 -4 -4 -4 -4 -3 -3 -2 -2 -2 -1 -1 ----------- Run | Yrd Mat Min Sub Mat Fac Sto Rec Scr Fac Upp Upp Zhi Pro Fac Ext Cet Arc Hub Res Tes Res Qua Sec Acc Com Matter Collected 1977 | 217 282 30 64 220 164 89 . . 110 . . 40 88 20 36 17 18 68 90 54 20 52 243 5 50 Remotely . | . . . . . . . . . . . . . . . . . . . . . . . . . . Salvage Created 64150 | . 689 308 392 1672 1679 1803 177 . 2256 515 342 326 1403 970 1576 602 525 1609 2635 2323 1706 1802 5263 831 32746 Parts 2753 | . 31 11 32 75 75 76 9 . 144 38 12 6 58 80 86 28 37 78 134 118 100 68 214 53 1190 Haulers Intercepted 25 | . 1 . . 4 4 6 . . 4 . . . . . . . . 2 3 1 . . . . . Recyclers Shooed . | . . . . . . . . . . . . . . . . . . . . . . . . . . Parts Field Recycled . | . . . . . . . . . . . . . . . . . . . . . . . . . . Retrieved Matter . | . . . . . . . . . . . . . . . . . . . . . . . . . . Parts Self-Destructed 131 | . . . 15 . . . . . . 37 12 4 63 . . . . . . . . . . . . Prevented 1 | . . . . . . . . . . . . . 1 . . . . . . . . . . . . Kills | -11 -10 -10 -10 -8 -7 -7 -7 -7 -5 -5 -5 -5 -4 -4 -4 -4 -4 -4 -3 -3 -2 -2 -2 -1 -1 ------- Run | Yrd Mat Min Sub Mat Fac Sto Rec Scr Fac Upp Upp Zhi Pro Fac Ext Cet Arc Hub Res Tes Res Qua Sec Acc Com Combat Hostiles Destroyed 1012 | . 14 3 18 43 36 22 3 . 44 17 6 . 21 29 25 7 4 20 45 29 31 14 68 14 499 Melee 929 | . . . . 8 24 22 3 . 44 17 6 . 21 29 25 7 4 20 45 29 31 14 68 14 498 Guns 49 | . 14 3 15 17 . . . . . . . . . . . . . . . . . . . . . Cannons 3 | . . . 2 1 . . . . . . . . . . . . . . . . . . . . . AOE 1 | . . . . . . . . . . . . . . . . . . . . . . . . . 1 Classes Destroyed 32 | . 6 . 3 3 2 . . . 5 1 . . 2 . . . . . 2 3 1 1 1 . 2 Worker 5 | . 1 1 . 1 . . . . . . . . . . . . . . . . . . . . 2 Builder 3 | . . . . 2 . . . . . . . . . 1 . . . . . . . . . . . Hauler 25 | . 1 . . 4 4 6 . . 4 . . . . . . . . 2 3 1 . . . . . Recycler 10 | . 1 2 . 1 1 2 . . . . . . . . . . . 1 . . . . . . 2 Mechanic 16 | . . . . . 1 1 . . . . . . . . . . . . . . . . 1 . 13 Operator 24 | . . . . 1 3 . . . 2 . . . . . 1 . 8 1 . 1 1 1 2 . 3 Drone 6 | . . . . . . . . . . . . . 2 . . . . . . . 3 . . . 1 Turret 2 | . . . 2 . . . . . . . . . . . . . . . . . . . . . . Watcher 60 | . 2 . . 5 5 2 . . 8 . . . . 4 1 2 . 4 3 2 4 2 5 2 9 Swarmer 131 | . 3 . 3 8 4 6 . . 17 11 4 . . 8 . . . . 12 . 8 . 5 . 42 Cutter 15 | . . . . . . . . . . . . . . . . . . . . . 3 . . . 12 Saboteur 12 | . . . . . . . . . . . . . . . . . . . . 2 1 . 1 1 7 Grunt 336 | . 11 3 2 23 18 5 . . 11 4 . . 7 11 18 . . 7 18 20 5 . 18 6 149 Brawler 42 | . . . . . . . . . . . . . 3 2 1 . . . . . . . 3 . 33 Duelist 44 | . . . . . . . . . 1 . . . 1 . . . . 1 1 . 1 . 3 . 36 Protector 29 | . . . . . . . . . 1 . . . 1 . . . . 1 . . . . 1 1 24 Researcher 14 | . . . . . . . . . . . . . . . . . . . . 5 . 3 6 . . Sentry 90 | . . . 1 9 9 11 3 . 4 1 . . 2 5 5 . 4 6 4 . 5 4 10 . 7 Demolisher 12 | . . . . . . . . . . . . . . . . . . . . . . . . . 12 Specialist 18 | . . . . . . . . . 1 . . . . . . . . . . . . . . . 17 Hunter 90 | . . . . 3 2 . . . 3 . 2 . 4 2 . . . 4 4 . 4 4 6 . 52 Programmer 97 | . . . . . 3 . . . 4 . . . . 1 . . . 1 1 5 1 5 4 3 69 Heavy 3 | . . . . . . . . . 1 . . . . . . . . . . . . . 1 . 1 Q-Series 2 | . . . . . . . . . . . . . . . . . . . . . . . 2 . . Behemoth 4 | . . . . . . . . . 1 . . . . . 1 . . . . . . . . . 2 Cetus Guard 7 | . . . . . . . . . . . . . . . . 7 . . . . . . . . . S7 Guard 2 | . . . . . . . . . . . . . . . . . . . . . . . 2 . . M Guard 2 | . . . . . . . . . . . . . . . . . . . . . . . . . 2 Tracker 8 | . . . . . . . . . . . . . . . . . . . . . . . 6 2 . Combat Programmer 7 | . . . . . . . . . . . . . . . . . . . . . . . 4 1 2 Investigator 1 | . . . . . . . . . . . . . . . . . . . . . . . . . 1 Striker 22 | . . . . . . . . . . . . . . . . . . . 4 1 . . . . 17 Executioner 12 | . . . . . . . . . . . . . . . . . . . . . . . . . 12 Alpha 7 5 | . . . . . . . . . . . . . . . . . . . . 1 . . 2 . 2 Fortress 1 | . . . . . . . . . . . . . . . . . . . . . . 1 . . . Subdweller 12 | . . . 12 . . . . . . . . . . . . . . . . . . . . . . Mutant 2 | . . . . . . . . . . 1 . . 1 . . . . . . . . . . . . Revision 1 | . . . . . . . . . . . . . . . . . . . 1 . . . . . . Best Kill Streak 38 | . 4 2 3 11 7 8 1 . 7 7 4 . 8 6 8 5 12 17 13 8 10 4 15 7 38 Combat Bots Only 38 | . 3 1 3 6 7 5 1 . 6 7 4 . 8 6 8 4 4 7 13 6 8 4 14 6 38 Max Kills in Single Turn 2 | . 1 1 2 2 1 1 1 . 1 1 1 . 1 1 1 1 1 1 1 2 2 1 2 1 2 Gunslinging 1 | . . . . 1 . . . . . . . . . . . . . . . . . . . . . Exploded 1 | . . . . . . . . . . . . . . . . . . . . . . . . . 1 Melee 2 | . . . . 1 1 1 1 . 1 1 1 . 1 1 1 1 1 1 1 2 2 1 2 1 2 Uniques/NPCs Destroyed . | . . . . . . . . . . . . . . . . . . . . . . . . . . Combat | -11 -10 -10 -10 -8 -7 -7 -7 -7 -5 -5 -5 -5 -4 -4 -4 -4 -4 -4 -3 -3 -2 -2 -2 -1 -1 -------- Run | Yrd Mat Min Sub Mat Fac Sto Rec Scr Fac Upp Upp Zhi Pro Fac Ext Cet Arc Hub Res Tes Res Qua Sec Acc Com Hostile Shots Fired 5506 | . 65 7 108 149 220 131 18 . 199 41 38 . 102 113 89 40 17 101 154 98 156 59 500 170 2931 Missed 1959 | . 19 3 53 65 100 58 12 . 89 13 12 . 43 39 43 22 9 47 79 39 81 18 151 44 920 Damage Taken 33650 | . 480 48 857 987 989 474 39 . 1940 311 242 . 474 718 578 256 159 989 1365 890 1097 785 4039 864 15069 Core 26992 | . 391 37 688 750 772 375 28 . 1489 234 190 . 359 550 459 193 88 729 877 624 707 571 3095 753 13033 Absorbed by Shields 1381 | . . . . . . . . . 299 118 94 . 350 324 53 94 19 . . . . . 27 . 3 Redirected to Core 22767 | . 285 37 560 548 518 260 28 . 1342 211 166 . 294 469 319 179 69 662 839 478 625 542 2744 622 10970 Ignored by Resistances 50672 | . 147 14 210 282 309 152 13 . 610 121 99 . 318 433 329 143 71 333 633 561 677 473 4538 2219 37987 Regen/Repaired (Parts) 787 | . . . . . . . . . . . . . . . . . . . . . . 51 525 3 208 Core Remaining (%) 77 | 100 . . 100 96 . . . 93 . . . . 99 . . . . 69 . 99 . . 29 . 16 Volleys Fired 217 | . 66 15 57 78 . . . . . . . . . . . . . . . . . . . . 1 Largest 2 | . 2 2 2 2 . . . . . . . . . . . . . . . . . . . . 1 Hottest 156 | . 112 112 156 122 . . . . . . . . . . . . . . . . . . . . . Shots Fired 435 | . 132 30 116 156 . . . . . . . . . . . . . . . . . . . . 1 Gun 415 | . 132 30 97 156 . . . . . . . . . . . . . . . . . . . . . Cannon . | . . . . . . . . . . . . . . . . . . . . . . . . . . Launcher . | . . . . . . . . . . . . . . . . . . . . . . . . . . Special 20 | . . . 19 . . . . . . . . . . . . . . . . . . . . . 1 Kinetic 122 | . 122 . . . . . . . . . . . . . . . . . . . . . . . . Thermal 312 | . 10 30 116 156 . . . . . . . . . . . . . . . . . . . . . Explosive . | . . . . . . . . . . . . . . . . . . . . . . . . . . Electromagnetic . | . . . . . . . . . . . . . . . . . . . . . . . . . . Robot Hit Streak 47 | . 26 19 47 36 . . . . . . . . . . . . . . . . . . . . 17 Robot Miss Streak 2 | . 2 1 2 2 . . . . . . . . . . . . . . . . . . . . . Penetration Max . | . . . . . . . . . . . . . . . . . . . . . . . . . . Secondary Targets 4 | . 1 . 2 1 . . . . . . . . . . . . . . . . . . . . . Max Gunslinging Chain 1 | . 1 . 1 1 . . . . . . . . . . . . . . . . . . . . . Shots Hit Robots 2981 | . 108 22 96 188 107 69 6 . 129 24 19 9 54 97 71 25 19 101 170 110 98 82 251 30 1096 Core Hits 1341 | . 41 9 37 64 30 31 3 . 66 15 7 6 29 41 39 14 10 40 72 53 51 27 107 14 535 Critical Kills 5 | . 1 . . 2 2 . . . . . . . . . . . . . . . . . . . . Critical Parts Destroyed 27 | . . . . 13 14 . . . . . . . . . . . . . . . . . . . . Critical Strikes 372 | . 1 3 6 30 23 15 1 . 14 1 3 . 15 22 14 7 1 19 38 24 15 10 32 3 75 Burn 24 | . . 3 6 15 . . . . . . . . . . . . . . . . . . . . . Destroy 1 | . 1 . . . . . . . . . . . . . . . . . . . . . . . . Smash 31 | . . . . 15 16 . . . . . . . . . . . . . . . . . . . . Sever 312 | . . . . . 7 15 1 . 14 1 3 . 15 22 14 7 1 19 38 24 15 9 29 3 75 Impale 4 | . . . . . . . . . . . . . . . . . . . . . . 1 3 . . Melee Attacks 3081 | . . . . 65 124 81 7 . 142 28 20 9 61 102 76 26 20 108 182 131 120 95 294 48 1342 Thermal 7 | . . . . . . . . . . . . . . . . . . . . . . . . . 7 Impact 126 | . . . . 65 61 . . . . . . . . . . . . . . . . . . . . Slashing 2916 | . . . . . 63 81 7 . 142 28 20 9 61 102 76 26 20 108 182 131 116 87 274 48 1335 Piercing 32 | . . . . . . . . . . . . . . . . . . . . . 4 8 20 . . Sneak Attacks 132 | . . . . 4 6 11 4 . 7 2 . . . 8 4 . 8 8 6 8 5 5 12 3 31 Combat Hostiles 58 | . . . . 3 . 2 4 . 4 2 . . . 6 4 . . 5 3 1 4 2 5 2 11 Follow-up Attacks 499 | . . . . 7 17 1 1 . 10 1 1 1 3 11 9 4 2 15 32 17 27 33 68 5 234 Damage Inflicted 255454 | . 922 323 1361 5045 6240 4905 619 . 7990 1600 1233 1050 3004 5998 4319 1495 1937 6297 9590 6606 5280 5547 22405 4478 147210 Guns 4392 | . 914 323 1189 1966 . . . . . . . . . . . . . . . . . . . . . Cannons . | . . . . . . . . . . . . . . . . . . . . . . . . . . Explosions 63 | . . . . . 63 . . . . . . . . . . . . . . . . . . . . Melee 250815 | . . . . 3075 6177 4905 619 . 7990 1600 1233 1050 3004 5998 4319 1495 1937 6297 9590 6606 5280 5547 22405 4478 147210 Ramming 12 | . 8 . . 4 . . . . . . . . . . . . . . . . . . . . . Kinetic 808 | . 808 . . . . . . . . . . . . . . . . . . . . . . . . Thermal 3756 | . 106 323 1361 1966 . . . . . . . . . . . . . . . . . . . . . Explosive . | . . . . . . . . . . . . . . . . . . . . . . . . . . Electromagnetic 63 | . . . . . 63 . . . . . . . . . . . . . . . . . . . . Impact 6169 | . . . . 3075 3094 . . . . . . . . . . . . . . . . . . . . Slashing 243339 | . . . . . 3083 4905 619 . 7990 1600 1233 1050 3004 5998 4319 1495 1937 6297 9590 6606 5200 5254 21471 4478 147210 Piercing 1307 | . . . . . . . . . . . . . . . . . . . . . 80 293 934 . . Highest Corruption 10 | . 1 1 1 . 1 1 1 1 3 3 3 3 3 1 1 1 1 7 . 3 4 7 10 . . Average Corruption 2 | . 1 1 1 . 1 1 1 1 2 3 3 3 3 1 1 1 1 1 . 2 3 4 8 . . Corruption Purged . | . . . . . . . . . . . . . . . . . . . . . . . . . . Corruption Blocked . | . . . . . . . . . . . . . . . . . . . . . . . . . . Effects 130 | . 1 3 6 . 9 2 5 8 2 7 4 3 11 . 3 6 1 4 . 9 3 9 34 . . Message Errors 35 | . . 1 1 . 1 . 2 2 . 4 2 1 3 . 1 3 . . . 2 2 2 8 . . Matter Fused 32 | . 1 . 1 . 2 1 1 1 2 . . . 4 . 1 1 1 1 . 2 . 2 11 . . Heat Flow Errors 13 | . . . . . 3 . 1 1 . . 1 1 1 . . . . . . 1 . . 4 . . Energy Discharges 16 | . . 1 1 . . . . 1 . 1 . . . . 1 . . 2 . . 1 3 5 . . Parts Rejected 2 | . . . 1 . . . . . . . . . . . . . . . . 1 . . . . . Parts Fused 1 | . . . . . . . . . . . . . . . . . . . . 1 . . . . . Data Loss (minor) 18 | . . . . . 2 1 . 2 . 1 1 . 3 . . 2 . 1 . 2 . . 3 . . Data Loss (major) 7 | . . . . . . . 1 1 . 1 . 1 . . . . . . . . . 2 1 . . Misfires 2 | . . . 2 . . . . . . . . . . . . . . . . . . . . . . Alerts 4 | . . 1 . . 1 . . . . . . . . . . . . . . . . . 2 . . Overload Shots . | . . . . . . . . . . . . . . . . . . . . . . . . . . Overflow Damage 32748 | . . . . 993 1575 303 103 . 161 202 149 108 . 424 201 46 689 317 446 554 279 582 2270 856 22490 Projectiles 50 | . . . . 50 . . . . . . . . . . . . . . . . . . . . . Explosions . | . . . . . . . . . . . . . . . . . . . . . . . . . . Melee 32698 | . . . . 943 1575 303 103 . 161 202 149 108 . 424 201 46 689 317 446 554 279 582 2270 856 22490 Knockbacks 31 | . . . . 15 16 . . . . . . . . . . . . . . . . . . . . Impact 27 | . . . . 11 16 . . . . . . . . . . . . . . . . . . . . Kinetic . | . . . . . . . . . . . . . . . . . . . . . . . . . . Secondary 4 | . . . . 4 . . . . . . . . . . . . . . . . . . . . . Self-Inflicted Damage 61 | . 4 . . 2 55 . . . . . . . . . . . . . . . . . . . . Shots 2 | . . . . . 2 . . . . . . . . . . . . . . . . . . . . Rammed 2 | . 1 . . 1 . . . . . . . . . . . . . . . . . . . . . Targets Rammed 2 | . 1 . . 1 . . . . . . . . . . . . . . . . . . . . . Kicked . | . . . . . . . . . . . . . . . . . . . . . . . . . . Crushed . | . . . . . . . . . . . . . . . . . . . . . . . . . . Highest Temperature 212 | . 209 . . 9 122 . 54 185 . . 212 196 95 . . . . . . 66 . . 145 . . Average Temperature 68 | . 67 . . 7 63 . 28 104 . . 129 107 62 . . . . . . 33 . . 76 . . Received Heat Transfer 7272 | . 336 36 225 549 291 165 18 . 287 48 . . 57 96 233 61 31 87 311 244 153 99 549 120 3276 Siege Activations . | . . . . . . . . . . . . . . . . . . . . . . . . . . Robots Corrupted 33 | . . . . 18 15 . . . . . . . . . . . . . . . . . . . . Combat Hostiles 28 | . . . . 16 12 . . . . . . . . . . . . . . . . . . . . Parts Fried 50 | . . . . 22 18 . . . . . . . . . . 1 . 4 . 2 . . . . 3 Impact Corruptions 79 | . . . . 38 41 . . . . . . . . . . . . . . . . . . . . Robots Melted 2 | . . . 1 1 . . . . . . . . . . . . . . . . . . . . . Combat Hostiles 2 | . . . 1 1 . . . . . . . . . . . . . . . . . . . . . Parts Melted 35 | . . 1 8 15 . . . . 1 . . . . . . . 3 1 . 2 . . 2 . 2 Heat Transferred 12059 | . 259 1036 4807 5957 . . . . . . . . . . . . . . . . . . . . . Parts Sabotaged . | . . . . . . . . . . . . . . . . . . . . . . . . . . Parts Stolen . | . . . . . . . . . . . . . . . . . . . . . . . . . . Parts Stripped . | . . . . . . . . . . . . . . . . . . . . . . . . . . Power Chain Reactions . | . . . . . . . . . . . . . . . . . . . . . . . . . . Alert | -11 -10 -10 -10 -8 -7 -7 -7 -7 -5 -5 -5 -5 -4 -4 -4 -4 -4 -4 -3 -3 -2 -2 -2 -1 -1 ------- Run | Yrd Mat Min Sub Mat Fac Sto Rec Scr Fac Upp Upp Zhi Pro Fac Ext Cet Arc Hub Res Tes Res Qua Sec Acc Com Peak Influence 17533 | . 300 101 . 696 1135 871 366 . 1072 . . . . 1358 895 613 410 1065 935 903 1078 532 2568 2202 17533 Initial 1347 | . . 46 . . 271 442 287 . . . . . . 297 514 374 206 119 302 89 442 527 107 1347 1191 Average 3485 | . 115 62 . 313 709 635 335 . 463 . . . . 712 625 527 372 671 410 359 657 194 910 1574 8791 Maximum Alert Level 5 | . 1 . . 2 4 3 1 . 3 . . . . 4 3 2 2 3 3 3 3 2 5 5 5 Low Security (%) 12 | 100 85 100 . 28 . . . . 19 . . . . . . . . 9 5 25 . 47 7 . . Level 1 15 | . 14 . . 35 15 . 100 . 34 . . . . 13 9 4 41 15 66 31 . 44 6 . . Level 2 16 | . . . . 35 34 57 . . 13 . . . . 41 48 95 58 25 10 35 62 7 15 . . Level 3 15 | . . . . . 44 42 . . 31 . . . . 25 41 . . 50 16 6 37 . 52 . . Level 4 4 | . . . . . 5 . . . . . . . . 19 . . . . . . . . . 58 6 Level 5 . | . . . . . . . . . . . . . . . . . . . . . . . . . 1 High Security 33 | . . . . . . . . . . . . . . . . . . . . . . . . . 92 Max Security 2 | . . . . . . . . . . . . . . . . . . . . . . . 17 41 . Squads Dispatched 171 | . 4 . . 8 15 6 . . 5 . . . 1 14 2 . . 9 8 8 5 1 28 17 40 Investigation 32 | . 4 . . 3 6 3 . . 1 . . . . 3 2 . . 2 7 1 . . . . . Extermination 13 | . . . . . 3 1 . . 1 . . . . 1 . . . 1 . . 1 1 2 1 1 Reinforcement 23 | . . . . 2 2 . . . 2 . . . . 2 . . . 2 1 5 1 . 3 . 3 Assault 75 | . . . . 1 1 . . . 1 . . . 1 4 . . . 2 . 2 1 . 14 12 36 Garrison 16 | . . . . 2 3 2 . . . . . . . 4 . . . 2 . . 2 . . 1 . Intercept 12 | . . . . . . . . . . . . . . . . . . . . . . . 9 3 . Searches Triggered . | . . . . . . . . . . . . . . . . . . . . . . . . . . Construction Impeded 2 | . . . . . . . . . . . . . . 1 . . . . . 1 . . . . . Haulers Reinforced 3 | . . . . . . . . . 1 . . . . 1 . . . . 1 . . . . . . Active Scanning Responses . | . . . . . . . . . . . . . . . . . . . . . . . . . . Cargo Convoy Interrupts 1 | . . . . . . . . . 1 . . . . . . . . . . . . . . . . Stealth | -11 -10 -10 -10 -8 -7 -7 -7 -7 -5 -5 -5 -5 -4 -4 -4 -4 -4 -4 -3 -3 -2 -2 -2 -1 -1 --------- Run | Yrd Mat Min Sub Mat Fac Sto Rec Scr Fac Upp Upp Zhi Pro Fac Ext Cet Arc Hub Res Tes Res Qua Sec Acc Com Distress Signals 45 | . 1 . . 2 . 2 . . 2 . . . . 1 3 2 . 1 2 1 2 1 3 2 20 Communications Jammed . | . . . . . . . . . . . . . . . . . . . . . . . . . . Distress Signals . | . . . . . . . . . . . . . . . . . . . . . . . . . . Times Spotted 1733 | . 20 4 23 62 56 27 2 . 65 19 6 . 28 49 30 10 8 41 61 50 61 16 150 61 884 Peak Tracking Total 46 | . 4 2 5 8 7 4 1 . 9 4 4 . 14 11 6 5 3 6 6 7 13 4 36 32 46 Tactical Retreats 145 | . 1 . 3 4 3 3 . . 7 1 1 . 1 5 . . . 2 3 2 4 . 10 5 90 Traps | -11 -10 -10 -10 -8 -7 -7 -7 -7 -5 -5 -5 -5 -4 -4 -4 -4 -4 -4 -3 -3 -2 -2 -2 -1 -1 ------- Run | Yrd Mat Min Sub Mat Fac Sto Rec Scr Fac Upp Upp Zhi Pro Fac Ext Cet Arc Hub Res Tes Res Qua Sec Acc Com Traps Triggered 30 | . 2 . 3 . 3 1 . . 1 1 . . . . 1 . . 2 1 2 . 1 4 . 8 Indirectly . | . . . . . . . . . . . . . . . . . . . . . . . . . . Trap Hack Attempts . | . . . . . . . . . . . . . . . . . . . . . . . . . . Triggered . | . . . . . . . . . . . . . . . . . . . . . . . . . . Disarmed . | . . . . . . . . . . . . . . . . . . . . . . . . . . Reprogrammed 12 | . . . . . 12 . . . . . . . . . . . . . . . . . . . . Reused 5 | . . . . . 5 . . . . . . . . . . . . . . . . . . . . Traps Extracted . | . . . . . . . . . . . . . . . . . . . . . . . . . . Installed . | . . . . . . . . . . . . . . . . . . . . . . . . . . Triggered 8 | . . . 1 . 5 . . . . 1 . . . . . . . . . . . . . . 1 Machines | -11 -10 -10 -10 -8 -7 -7 -7 -7 -5 -5 -5 -5 -4 -4 -4 -4 -4 -4 -3 -3 -2 -2 -2 -1 -1 ---------- Run | Yrd Mat Min Sub Mat Fac Sto Rec Scr Fac Upp Upp Zhi Pro Fac Ext Cet Arc Hub Res Tes Res Qua Sec Acc Com Machines Disabled 38 | . . . . 1 3 2 . . . 1 . . . 5 1 . 2 2 . 12 . 1 7 . 1 Max in Single Turn 2 | . . . . 1 2 1 . . . 1 . . . . . . . 1 . 1 . 1 1 . 1 Garrison Access 7 | . . . . 1 . . . . . . . . . 1 . . . 2 2 1 . . . . . Network Hub 1 | . . . . . . . . . . . . . . . . . . 1 . . . . . . . Energy Cycler 1 | . . . . . . . . . . . . . . . . . . . . . . . . 1 . Machines Repaired . | . . . . . . . . . . . . . . . . . . . . . . . . . . Machines Dismantled . | . . . . . . . . . . . . . . . . . . . . . . . . . . Machines Sabotaged . | . . . . . . . . . . . . . . . . . . . . . . . . . . Overloaded Fab Kills . | . . . . . . . . . . . . . . . . . . . . . . . . . . Hacking | -11 -10 -10 -10 -8 -7 -7 -7 -7 -5 -5 -5 -5 -4 -4 -4 -4 -4 -4 -3 -3 -2 -2 -2 -1 -1 --------- Run | Yrd Mat Min Sub Mat Fac Sto Rec Scr Fac Upp Upp Zhi Pro Fac Ext Cet Arc Hub Res Tes Res Qua Sec Acc Com Machines Accessed 150 | . 9 2 1 12 14 7 11 2 9 1 . 5 . 9 14 3 . 9 8 11 6 6 9 . 2 Terminals 110 | . 7 1 . 9 10 6 5 . 8 1 . . . 5 12 3 . 8 4 9 5 6 9 . 2 Fabricators 6 | . . . . . 1 . . . . . . . . . . . . . 3 2 . . . . . Repair Stations . | . . . . . . . . . . . . . . . . . . . . . . . . . . Recycling Units 17 | . 2 . . 2 1 . 6 . 1 . . . . 2 2 . . . 1 . . . . . . Scanalyzers . | . . . . . . . . . . . . . . . . . . . . . . . . . . Garrison Access 8 | . . . . 1 2 1 . . . . . . . 2 . . . 1 . . 1 . . . . Total Hacks 491 | . 26 4 3 44 44 15 25 12 32 7 . 18 . 19 31 9 . 27 37 49 29 29 28 . 3 Successful 322 | . 23 4 3 32 23 10 19 12 17 7 . 18 . 12 20 8 . 14 18 27 9 24 20 . 2 Failed 168 | . 3 . . 12 20 5 6 . 15 . . . . 7 11 1 . 13 19 22 20 5 8 . 1 Catastrophic 28 | . . . . 1 3 2 . . 3 . . . . 1 1 . . 4 4 . 5 3 1 . . Database Lockouts 1 | . . . . . 1 . . . . . . . . . . . . . . . . . . . . Manual 330 | . 24 . . 41 33 7 26 . 29 . . . . 17 22 1 . 28 13 29 18 21 21 . . Terminals 396 | . 24 3 . 41 37 14 12 . 31 7 . . . 15 28 9 . 26 24 38 27 29 28 . 3 Fabricators 25 | . . . . . 3 . . . . . . . . . . . . . 11 11 . . . . . Repair Stations . | . . . . . . . . . . . . . . . . . . . . . . . . . . Recycling Units 26 | . 2 . . 2 1 . 13 . 1 . . . . 2 3 . . . 2 . . . . . . Scanalyzers . | . . . . . . . . . . . . . . . . . . . . . . . . . . Garrison Access 10 | . . . . 1 3 1 . . . . . . . 2 . . . 1 . . 2 . . . . Terminal Hacks 172 | . 6 4 3 17 9 7 2 12 7 7 . 18 . 3 13 8 . 5 9 13 5 11 11 . 2 Record 31 | . . 3 3 . . . . 4 . 7 . 6 . . . 7 . . . . . . 1 . . Part Schematic 11 | . . . . . 3 . 1 . . . . 4 . . . . . 1 . 2 . . . . . Robot Schematic 1 | . . . . . . . . . . . . . . . 1 . . . . . . . . . . Robot Analysis 33 | . 4 . . 8 . . 1 8 2 . . 4 . 1 1 . . . . 2 . 2 . . . Prototype ID Bank 6 | . . . . 1 . . . . . . . 4 . . . . . . . . . . 1 . . Open Door 16 | . . 1 . . . 4 . . . . . . . . 7 1 . . . 1 . . 2 . . Level Access Points 1 | . . . . 1 . . . . . . . . . . . . . . . . . . . . . Branch Access Points 4 | . 1 . . . 1 . . . . . . . . . . . . . . . 1 1 . . . Terminal Index 3 | . . . . . . 1 . . 1 . . . . 1 . . . . . . . . . . . Fabricator Index 2 | . . . . . . . . . . . . . . . . . . . 2 . . . . . . Recycling Unit Index 1 | . . . . . . . . . 1 . . . . . . . . . . . . . . . . Alert Level 17 | . 1 . . 1 2 1 . . 2 . . . . 1 1 . . . 1 2 1 2 2 . . Unreport Threat 40 | . . . . 6 1 1 . . 1 . . . . . 3 . . 4 6 6 3 6 3 . . Reprogram Traps 2 | . . . . . 2 . . . . . . . . . . . . . . . . . . . . Activate Exoskeleton 2 | . . . . . . . . . . . . . . . . . . . . . . . 2 . . Disengage Seal 2 | . . . . . . . . . . . . . . . . . . . . . . . . . 2 Fabricator Hacks 11 | . . . . . 2 . . . . . . . . . . . . . 6 3 . . . . . Load Schematic 6 | . . . . . 1 . . . . . . . . . . . . . 3 2 . . . . . Build 5 | . . . . . 1 . . . . . . . . . . . . . 3 1 . . . . . Repair Station Hacks . | . . . . . . . . . . . . . . . . . . . . . . . . . . Recycling Unit Hacks . | . . . . . . . . . . . . . . . . . . . . . . . . . . Scanalyzer . | . . . . . . . . . . . . . . . . . . . . . . . . . . Garrison Access Hacks . | . . . . . . . . . . . . . . . . . . . . . . . . . . Unauthorized Hacks 138 | . 17 . . 15 12 3 17 . 10 . . . . 9 7 . . 9 3 10 4 13 9 . . Terminals 106 | . 15 . . 12 9 2 6 . 9 . . . . 5 5 . . 8 2 7 4 13 9 . . Track 7 | . 1 . . . . . . . . . . . . 1 . . . . . . . 3 2 . . Assimilate 1 | . . . . 1 . . . . . . . . . . . . . . . . . . . . . Botnet 80 | . 7 . . 9 9 2 5 . 7 . . . . 3 5 . . 8 2 7 4 6 6 . . Operators 2 | . . . . . . . 1 . . . . . . . . . . . . . . 1 . . . Skim 16 | . 7 . . 2 . . . . 2 . . . . 1 . . . . . . . 3 1 . . Fabricators 3 | . . . . . . . . . . . . . . . . . . . . 3 . . . . . Prioritize 2 | . . . . . . . . . . . . . . . . . . . . 2 . . . . . Liberate 1 | . . . . . . . . . . . . . . . . . . . . 1 . . . . . Repair Stations 6 | . . . . . . . . . 1 . . . . 2 2 . . . 1 . . . . . . Recycling Units 16 | . 2 . . 2 1 . 11 . . . . . . . . . . . . . . . . . . Reject 4 | . . . . . . . 4 . . . . . . . . . . . . . . . . . . Recyclers 1 | . . . . . . . 1 . . . . . . . . . . . . . . . . . . Mask 6 | . . . . . . . 6 . . . . . . . . . . . . . . . . . . Tunnel 5 | . 2 . . 2 1 . . . . . . . . . . . . . . . . . . . . Fedlink 3 | . . . . . . . . . 1 . . . . . 2 . . . . . . . . . . Scrapoids 3 | . . . . . . . . . . . . . . 2 . . . . 1 . . . . . . Scanalyzers . | . . . . . . . . . . . . . . . . . . . . . . . . . . Garrison Access 7 | . . . . 1 2 1 . . . . . . . 2 . . . 1 . . . . . . . Reprogram 7 | . . . . 1 2 1 . . . . . . . 2 . . . 1 . . . . . . . Data Cores Recovered 11 | . . . . . . . . . 2 . . . . . 1 . . 2 . 1 1 1 2 . 1 Used 4 | . . . . . . . . . 1 . . . . . 1 . . 1 . . . 1 . . . Hacking Detections 90 | . 5 1 . 7 12 6 6 . 7 . . . . 5 6 1 . 7 5 7 6 5 4 . . Full Trace Events 10 | . 1 1 . . 3 1 . . . . . . . . . . . . 3 1 . . . . . Feedback Events . | . . . . . . . . . . . . . . . . . . . . . . . . . . Feedback Blocked . | . . . . . . . . . . . . . . . . . . . . . . . . . . Robot Schematics Acquired 13 | . . . . . . . . . . . . . . . 1 . . . . 3 . 1 8 . . Robots Built 1 | . . . . . . . . . . . . . . . . . . . 1 . . . . . . Authchips . | . . . . . . . . . . . . . . . . . . . . . . . . . . Time 62 | . . . . . . . . . . . . . . . . . . . 62 . . . . . . Total Robot Build Rating 7 | . . . . . . . . . . . . . . . . . . . 7 . . . . . . Part Schematics Acquired 48 | . . . . . 3 . 1 . . . . 4 . . . . . 1 . 21 . 4 14 . . Parts Built 5 | . . . . . 2 . . . . . . . . . . . . . 2 1 . . . . . Authchips . | . . . . . . . . . . . . . . . . . . . . . . . . . . Time 224 | . . . . . 42 . . . . . . . . . . . . . 140 42 . . . . . Total Part Build Rating 26 | . . . . . 8 . . . . . . . . . . . . . 12 6 . . . . . Parts Repaired . | . . . . . . . . . . . . . . . . . . . . . . . . . . Time . | . . . . . . . . . . . . . . . . . . . . . . . . . . Parts Recycled . | . . . . . . . . . . . . . . . . . . . . . . . . . . Recycled Matter . | . . . . . . . . . . . . . . . . . . . . . . . . . . Retrieved Matter . | . . . . . . . . . . . . . . . . . . . . . . . . . . Retrieved Components . | . . . . . . . . . . . . . . . . . . . . . . . . . . Parts Scanalyzed . | . . . . . . . . . . . . . . . . . . . . . . . . . . Part Schematics Acquired . | . . . . . . . . . . . . . . . . . . . . . . . . . . Parts Damaged . | . . . . . . . . . . . . . . . . . . . . . . . . . . Bothacking | -11 -10 -10 -10 -8 -7 -7 -7 -7 -5 -5 -5 -5 -4 -4 -4 -4 -4 -4 -3 -3 -2 -2 -2 -1 -1 ------------ Run | Yrd Mat Min Sub Mat Fac Sto Rec Scr Fac Upp Upp Zhi Pro Fac Ext Cet Arc Hub Res Tes Res Qua Sec Acc Com Used RIF Installer . | . . . . . . . . . . . . . . . . . . . . . . . . . . Robots Hacked . | . . . . . . . . . . . . . . . . . . . . . . . . . . Non-combat . | . . . . . . . . . . . . . . . . . . . . . . . . . . Combat . | . . . . . . . . . . . . . . . . . . . . . . . . . . Robot Hacks Applied . | . . . . . . . . . . . . . . . . . . . . . . . . . . Relay Couplers Released 3 | . . . . 1 . . . . . . . . . 1 . . . 1 . . . . . . . Machine Destruction 3 | . . . . 1 . . . . . . . . . 1 . . . 1 . . . . . . . Fabnet Peak Effective % . | . . . . . . . . . . . . . . . . . . . . . . . . . . Robots Rewired 17 | . . . . . 2 . . . . . . . 4 . 9 . . . . 1 . . . . 1 Allies Hacked 1 | . . . . . 1 . . . . . . . . . . . . . . . . . . . . Hacks Repelled . | . . . . . . . . . . . . . . . . . . . . . . . . . . Allies | -11 -10 -10 -10 -8 -7 -7 -7 -7 -5 -5 -5 -5 -4 -4 -4 -4 -4 -4 -3 -3 -2 -2 -2 -1 -1 -------- Run | Yrd Mat Min Sub Mat Fac Sto Rec Scr Fac Upp Upp Zhi Pro Fac Ext Cet Arc Hub Res Tes Res Qua Sec Acc Com Total Allies 189 | . . . . 2 4 3 . . . . . . 4 11 19 5 . 1 6 4 . . . 21 109 Largest Group 46 | . . . . 2 3 3 . . . . . . 4 6 15 20 20 18 6 6 . . . 7 46 Highest-Rated Group 1190 | . . . . 24 64 48 . . . . . . 167 287 715 1190 1190 996 417 475 . . . 101 1151 Highest-Rated Ally 234 | . . . . 15 32 16 . . . . . . 47 50 159 159 159 96 94 155 . . . 15 234 Total Orders 11 | . . 3 . . . 1 . . . . . . 2 2 . . . . 3 . . . . . . STAY 2 | . . . . . . . . . . . . . 1 1 . . . . . . . . . . . FOLLOW 2 | . . . . . . . . . . . . . 1 1 . . . . . . . . . . . DROP 1 | . . . . . . . . . . . . . . . . . . . 1 . . . . . . PICKUP 2 | . . . . . . . . . . . . . . . . . . . 2 . . . . . . EXPLORE 3 | . . 2 . . . 1 . . . . . . . . . . . . . . . . . . . RETURN 1 | . . 1 . . . . . . . . . . . . . . . . . . . . . . . Ally Attacks 844 | . . . . 2 26 1 . . . . . . 5 95 41 19 14 110 12 104 . . . 32 383 Total Damage 23684 | . . . . 52 405 13 . . . . . . 124 2503 1171 356 287 2859 339 3927 . . . 501 11147 Kills 96 | . . . . . 4 . . . . . . . . 15 5 1 . 13 . 23 . . . 1 34 Allies Corrupted 8 | . . . . . . . . . . . . . . . . . . 4 . . . . . . 4 Allies Melted . | . . . . . . . . . . . . . . . . . . . . . . . . . . Intel | -11 -10 -10 -10 -8 -7 -7 -7 -7 -5 -5 -5 -5 -4 -4 -4 -4 -4 -4 -3 -3 -2 -2 -2 -1 -1 ------- Run | Yrd Mat Min Sub Mat Fac Sto Rec Scr Fac Upp Upp Zhi Pro Fac Ext Cet Arc Hub Res Tes Res Qua Sec Acc Com Robot Analysis Total 32 | . 4 . . 8 . . 1 8 1 . . 4 . 1 1 . . . . 2 . 2 . . . Derelict Logs Recovered 7 | . . 2 1 . . . . . . 1 2 . 1 . . . . . . . . . . . . Drone Launches 33 | . . 17 . . . 16 . . . . . . . . . . . . . . . . . . . Drone Recoveries 1 | . . 1 . . . . . . . . . . . . . . . . . . . . . . . Exploration | -11 -10 -10 -10 -8 -7 -7 -7 -7 -5 -5 -5 -5 -4 -4 -4 -4 -4 -4 -3 -3 -2 -2 -2 -1 -1 ------------- Run | Yrd Mat Min Sub Mat Fac Sto Rec Scr Fac Upp Upp Zhi Pro Fac Ext Cet Arc Hub Res Tes Res Qua Sec Acc Com Turns Passed 24104 | 55 876 569 1218 1047 1441 505 273 1243 969 370 378 99 621 826 550 356 125 471 1622 581 468 407 1386 453 7195 Spaces Moved 36252 | 48 894 551 1653 1302 3101 894 695 1738 2063 1011 1140 203 1222 1717 615 317 185 776 2328 1247 825 730 1928 407 8662 Core 45 | 2 . . . . . . . . . . . . . . . . . . . . . . 43 . . Treads . | . . . . . . . . . . . . . . . . . . . . . . . . . . Legs 9551 | . . . . . . . . . . . . . . . . . . . . . . . 482 407 8662 Wheels 248 | 46 202 . . . . . . . . . . . . . . . . . . . . . . . . Hover 3053 | . 692 551 1653 157 . . . . . . . . . . . . . . . . . . . . . Flight 23355 | . . . . 1145 3101 894 695 1738 2063 1011 1140 203 1222 1717 615 317 185 776 2328 1247 825 730 1403 . . Fastest Speed 23 | 50 48 48 48 26 26 27 27 27 24 27 27 27 27 26 27 27 27 23 23 25 25 25 25 30 30 Average Speed 30 | 97 66 61 56 30 26 27 27 27 24 27 27 27 27 26 27 27 27 24 24 25 25 25 28 30 30 Slowest Speed 125 | 100 125 108 112 120 102 98 27 27 27 27 27 27 27 27 103 27 27 27 102 25 25 25 106 30 30 Overloaded Moves . | . . . . . . . . . . . . . . . . . . . . . . . . . . Propulsion Burnouts . | . . . . . . . . . . . . . . . . . . . . . . . . . . Robots Hopped 314 | . . . . 18 16 16 3 176 22 . . . . 21 3 4 . 7 2 11 8 . 7 . . Cave-ins Triggered . | . . . . . . . . . . . . . . . . . . . . . . . . . . Teleports 1 | . . . . . . . . . . . . 1 . . . . . . . . . . . . . Exploration Rate (%) 73 | 3 97 99 86 88 85 97 99 93 50 95 98 62 98 37 73 80 94 63 56 91 23 73 79 17 69 Regions Visited 25 Branch Regions 17 Pre-discovered Areas 13 | . 2 2 1 2 1 . . . . 1 1 3 . . . . . . . . . . . . . Known Exits Taken 21 | . 1 . . 1 1 1 1 1 1 1 1 1 1 1 1 1 1 1 1 1 1 1 1 . . Unknown Exits Taken 4 | 1 . 1 1 . . . . . . . . . . . . . . . . . . . . 1 . Scrap Searched 28 | . . 3 9 . . . . 4 . 3 4 . 5 . . . . . . . . . . . . Spaces Dug 41 | . . . . 2 2 . 1 . 3 . . . . . . . . . . . 5 . 1 14 13 Terrain Destroyed 41 | . . . . 2 2 . 1 . 3 . . . . . . . . . . . 5 . 1 14 13 Melee 41 | . . . . 2 2 . 1 . 3 . . . . . . . . . . . 5 . 1 14 13 Projectile . | . . . . . . . . . . . . . . . . . . . . . . . . . . AOE . | . . . . . . . . . . . . . . . . . . . . . . . . . . Terrain Rammed . | . . . . . . . . . . . . . . . . . . . . . . . . . . Walls Destroyed . | . . . . . . . . . . . . . . . . . . . . . . . . . . Machines Disabled . | . . . . . . . . . . . . . . . . . . . . . . . . . . Actions | -11 -10 -10 -10 -8 -7 -7 -7 -7 -5 -5 -5 -5 -4 -4 -4 -4 -4 -4 -3 -3 -2 -2 -2 -1 -1 --------- Run | Yrd Mat Min Sub Mat Fac Sto Rec Scr Fac Upp Upp Zhi Pro Fac Ext Cet Arc Hub Res Tes Res Qua Sec Acc Com Total 45725 | 53 1063 752 1798 1661 3582 1070 771 2334 2393 1086 1194 238 1466 1984 956 570 250 1002 3302 1472 1046 924 2604 678 11476 Wait 5528 | . 74 173 47 156 269 87 67 770 147 23 27 . 121 159 216 221 49 84 750 67 119 111 298 220 1273 Move 35709 | 47 893 550 1652 1270 3069 862 688 1473 2023 1010 1139 202 1221 1676 609 310 184 762 2323 1226 811 729 1913 406 8661 Hop 203 | . . . . 13 15 15 3 88 17 . . . . 19 2 2 . 6 2 9 5 . 7 . . Pick Up 15 | . 2 1 . . 1 . . 2 1 1 . . . . . . . . 3 1 . 1 1 . 1 Fast Attach 99 | 6 4 2 2 13 10 3 . 1 3 . . 3 2 . 3 2 . 4 5 2 1 4 22 1 6 Attach 5 | . . 1 . . 1 . . . 1 . . . . . . . . . . . 1 . . . 1 Detach 3 | . . . . . 2 . . . . . . . . . . . . . 1 . . . . . . Swap 53 | . 7 2 2 9 4 5 . . 4 . . 1 4 2 . . . 2 4 2 . . 2 . 3 Drop 76 | . 2 5 . 12 10 5 . . 3 . . 1 1 . 2 1 . 5 8 4 1 2 9 . 5 Fire 217 | . 66 15 57 78 . . . . . . . . . . . . . . . . . . . . 1 Melee 2233 | . . . . 56 92 72 6 . 122 24 18 8 51 86 62 21 17 87 138 99 76 50 193 41 914 Ram 2 | . 1 . . 1 . . . . . . . . . . . . . . . . . . . . . Kick . | . . . . . . . . . . . . . . . . . . . . . . . . . . Crush . | . . . . . . . . . . . . . . . . . . . . . . . . . . Escape Stasis 138 | . . . . . 54 . . . 18 . . . . . 5 . . 20 . 1 . . 38 . 2 Rewire 72 | . . . . . 9 . . . . . . . 26 4 23 . . . . 6 . . . . 4 Trap . | . . . . . . . . . . . . . . . . . . . . . . . . . . Miscellaneous 1372 | . 14 3 38 53 46 21 7 . 54 28 10 23 40 38 34 13 . 32 68 55 32 27 121 10 605 Route ------- -11/Scrapyard -10/Materials (discovered 4 exits: [*Mat x3] / *Min) -10/Mines (discovered 3 exits: [*Mat x2] / *Sub) -10/Subcaves (discovered 3 exits: *Mat x2 / *Rec) -8/Materials (discovered 3 exits: *Fac x3) -7/Factory (discovered 7 exits: *Fac x4 / *Sto / *Low x2) -7/Storage (discovered 2 exits: *Fac / *Rec) -7/Recycling (discovered 2 exits: *Fac / *Scr) -7/Scraptown (discovered 2 exits: *Fac x2) -5/Factory (discovered 5 exits: *Fac x3 / *Upp x2) -5/Upper Caves -5/Upper Caves (discovered 2 exits: *Fac / *Zhi) -5/Zhirov -4/Proximity Caves -4/Factory (discovered 5 exits: *Res x2 / Upp / *Ext x2) -4/Extension (discovered 2 exits: *Res / *Cet) -4/Cetus (discovered 2 exits: *Res / *Arc) -4/Archives (discovered 3 exits: *Res / *Hub x2) -4/Hub_04(d) (discovered 4 exits: *Res x4) -3/Research (discovered 4 exits: *Res x2 / *Arm / *Tes) -3/Testing -2/Research (discovered 2 exits: *Qua x2) -2/Quarantine (discovered 2 exits: *Acc / *Sec) -2/Section 7 -1/Access -1/Command To Fleet Rendezvous History --------- Turn | Location | Event 12 | -11/Scrapyard | Upgraded with Power slot (x1) 12 | -11/Scrapyard | Upgraded with Propulsion slot (x1) 12 | -11/Scrapyard | Upgraded with Utility slot (x1) 12 | -11/Scrapyard | Upgraded with Weapon slot (x1) 26 | -11/Scrapyard | Discovered new exit (range 14) 56 | -11/Scrapyard | Entered Materials 196 | -10/Materials | Discovered new exit (range 13) 301 | -10/Materials | Build established: Mutant 490 | -10/Materials | Discovered new exit (range 10) 505 | -10/Materials | Core integrity fell below 50% 643 | -10/Materials | Upgraded with Propulsion slot (x2) 689 | -10/Materials | Discovered new exit (range 10) 708 | -10/Materials | Reached level 2 729 | -10/Materials | Identified exit to Mines 803 | -10/Materials | Build established: Scavenger-Mutant 803 | -10/Materials | Discovered new exit (range 11) 890 | -10/Materials | Loaded intel: 17 trap records 932 | -10/Materials | Entered Mines 936 | -10/Mines | Learned location of Recycling (-7) 970 | -10/Mines | YI-UF0 nonchalantly dropped a Grenade Launcher on the ground 1010 | -10/Mines | Discovered new exit (range 11) 1066 | -10/Mines | Found the Drone Emporium 1070 | -10/Mines | Found Prototype Device 1070 | -10/Mines | Identified Decoy Drone Bay 1234 | -10/Mines | Discovered new exit (range 61) 1280 | -10/Mines | Discovered new exit (range 11) 1305 | -10/Mines | Learned location of Storage (-7) 1337 | -10/Mines | Reached level 3 1501 | -10/Mines | Entered Subcaves 1528 | -10/Subcaves | Learned Materials stockpile data 1535 | -10/Subcaves | Shifting Twisted Machinery released Sub. Monowheel 1538 | -10/Subcaves | Shifting Twisted Machinery released Sub. Power Source 1589 | -10/Subcaves | Disturbed a concealed Subdweller 1698 | -10/Subcaves | Learned location of Zion (-6) 1698 | -10/Subcaves | Met a Zionite searching for "candidates" 1728 | -10/Subcaves | Shifting Twisted Machinery released Sub. Power Source 1729 | -10/Subcaves | Shifting Twisted Machinery released Battle Cannon 2083 | -10/Subcaves | Discovered new exit (range 9) 2190 | -10/Subcaves | Reached level 4 2210 | -10/Subcaves | Discovered new exit (range 14) 2298 | -10/Subcaves | Discovered new exit (range 8) 2335 | -10/Subcaves | A Subdweller sparked back to life 2335 | -10/Subcaves | A Subdweller sparked back to life 2335 | -10/Subcaves | A Subdweller sparked back to life 2373 | -10/Subcaves | Found Prototype Protection 2373 | -10/Subcaves | Identified Gun Armor 2375 | -10/Subcaves | Attached Gun Armor, gained temporary slots: Weapon x2 2695 | -10/Subcaves | Visited Clippyterm 2697 | -10/Subcaves | Learned Factory fabricator intel 2719 | -10/Subcaves | Entered Materials 2721 | -8/Materials | Reached level 5 2721 | -8/Materials | Reached level 6 2883 | -8/Materials | Reached level 7 2993 | -8/Materials | Upgraded with Utility slot (x1) 3140 | -8/Materials | Reached level 8 3152 | -8/Materials | Discovered new exit (range 9) 3273 | -8/Materials | Garrison activated, responded to threat 3300 | -8/Materials | Discovered new exit (range 15) 3322 | -8/Materials | Upgraded with Utility slot (x1) 3347 | -8/Materials | Identified exit to Factory 3384 | -8/Materials | Reached level 9 3576 | -8/Materials | Build established: Hacker-Sprinter 3581 | -8/Materials | Reached level 10 3619 | -8/Materials | Upgraded with Weapon slot (x1) 3715 | -8/Materials | Upgraded with Weapon slot (x1) 3740 | -8/Materials | Reached level 11 3766 | -8/Materials | Entered Factory 3767 | -7/Factory | Loaded intel: 6 fabricator locations 3768 | -7/Factory | Reached level 12 3835 | -7/Factory | Upgraded with Utility slot (x1) 3980 | -7/Factory | Garrison activated, responded to threat 4020 | -7/Factory | Reached level 13 4041 | -7/Factory | Destroyed 7 combat bots 4048 | -7/Factory | Upgraded with Utility slot (x1) 4057 | -7/Factory | Discovered new exit (range 11) 4061 | -7/Factory | Identified exit to Lower Caves 4082 | -7/Factory | Upgraded with Utility slot (x1) 4094 | -7/Factory | Discovered new exit (range 4) 4322 | -7/Factory | Core integrity fell below 50% 4357 | -7/Factory | Reached level 14 4381 | -7/Factory | Discovered new exit (range 11) 4523 | -7/Factory | Upgraded with Utility slot (x1) 4579 | -7/Factory | Discovered new exit (range 13) 4620 | -7/Factory | Fabricated Greatsword (x2) 4638 | -7/Factory | Identified exit to Factory 4852 | -7/Factory | Reached level 15 4911 | -7/Factory | Discovered exit to Factory (range 7) 4966 | -7/Factory | First assault squad dispatched 5076 | -7/Factory | Discovered exit to Lower Caves (range 14) 5110 | -7/Factory | Discovered exit to Factory (range 5) 5202 | -7/Factory | Central database locked down 5202 | -7/Factory | Identified exit to Storage 5207 | -7/Factory | Entered Storage 5287 | -7/Storage | Used back door to open Recycling access 5287 | -7/Storage | Discovered new exit (range 5) 5391 | -7/Storage | Reached level 16 5449 | -7/Storage | Discovered exit to Factory (range 15) 5452 | -7/Storage | Lost 8 allies 5572 | -7/Storage | Identified exit to Recycling 5579 | -7/Storage | Lost 3 allies 5598 | -7/Storage | Garrison activated, responded to threat 5712 | -7/Storage | Entered Recycling 5770 | -7/Recycling | Scanned before Scraplab entrance 5780 | -7/Recycling | Entered Scraplab 5782 | -7/Recycling | Discovered new exit (range 3) 5782 | -7/Recycling | Identified exit to Scraptown 5809 | -7/Recycling | Discovered new exit (range 11) 5985 | -7/Recycling | Entered Scraptown 5987 | -7/Scraptown | Reached level 17 6046 | -7/Scraptown | Discovered new exit (range 5) 6073 | -7/Scraptown | Visited Assassins FH 6081 | -7/Scraptown | Visited TADAMA 6101 | -7/Scraptown | Visited Observation Area 6127 | -7/Scraptown | Visited Awakened 6206 | -7/Scraptown | Visited Shadow of the Wyrm 6356 | -7/Scraptown | Visited UFD Registry 6356 | -7/Scraptown | Registered with UFD as "Cargogunner" 6366 | -7/Scraptown | Visited Junk Repository 6379 | -7/Scraptown | Visited Chapter 10 6390 | -7/Scraptown | Visited A0-MCA Data Center 6392 | -7/Scraptown | Given a B+ rating by A0-MCA 6395 | -7/Scraptown | Upgraded with Utility slot (x1) 6396 | -7/Scraptown | Found A0-MCA's Component Scanner 6403 | -7/Scraptown | Visited Science Testing Area 6407 | -7/Scraptown | Visited Abandonware Association 6417 | -7/Scraptown | Learned abandonware demo "REPAIR.EXE" 6417 | -7/Scraptown | Learned abandonware demo "SHUTEYE.EXE" 6421 | -7/Scraptown | Visited Scrapoid Pod Storage 6426 | -7/Scraptown | Visited Analyses Database 6433 | -7/Scraptown | Visited Junk Repository 6439 | -7/Scraptown | Visited Supply Room 6443 | -7/Scraptown | Visited LU-1G1's Boring Crew 7227 | -7/Scraptown | Discovered new exit (range 5) 7228 | -7/Scraptown | Identified exit to Factory 7228 | -7/Scraptown | Entered Factory 7230 | -5/Factory | Reached level 18 7401 | -5/Factory | Upgraded with Propulsion slot (x1) 7414 | -5/Factory | Spotted B-75 Beast 7471 | -5/Factory | Destroyed B-75 Beast 7602 | -5/Factory | Discovered new exit (range 5) 7617 | -5/Factory | Reached level 19 7755 | -5/Factory | Discovered new exit (range 3) 7756 | -5/Factory | Identified exit to Upper Caves 7827 | -5/Factory | Reached level 20 7969 | -5/Factory | Cargo convoy interrupted 7991 | -5/Factory | Core integrity fell below 50% 8002 | -5/Factory | Upgraded with Utility slot (x1) 8003 | -5/Factory | Found Exp. Shield Generator 8072 | -5/Factory | Discovered new exit (range 16) 8072 | -5/Factory | Discovered exit to Upper Caves (range 12) 8106 | -5/Factory | Reached level 21 8128 | -5/Factory | First assault squad dispatched 8131 | -5/Factory | Discovered new exit (range 12) 8134 | -5/Factory | Identified exit to Factory 8197 | -5/Factory | Entered Upper Caves 8294 | -5/Upper Caves | Identified exit to Upper Caves 8332 | -5/Upper Caves | Attacked by a delusional Derelict stockpiling parts 8385 | -5/Upper Caves | Attracted the attention of an 0b10 base 8398 | -5/Upper Caves | Learned location of 1 exit from Factory 8398 | -5/Upper Caves | Learned Extension trap positions 8398 | -5/Upper Caves | Learned Research security intel 8429 | -5/Upper Caves | Destroyed 7 combat bots 8567 | -5/Upper Caves | Entered another Upper Caves area 8569 | -5/Upper Caves | Reached level 22 8569 | -5/Upper Caves | Discovered exit to Factory (range 16) 8724 | -5/Upper Caves | Discovered new exit (range 6) 8726 | -5/Upper Caves | Identified exit to Zhirov 8945 | -5/Upper Caves | Entered Zhirov 8945 | -5/Zhirov | Discovered new exit (range 3) 8950 | -5/Zhirov | Met Zhirov 8957 | -5/Zhirov | Learned location of Quarantine (-2) 8957 | -5/Zhirov | Learned location of Testing (-3) 8957 | -5/Zhirov | Learned location of Command (-1) 8962 | -5/Zhirov | Zhirov requested help retrieving the SGEMP Prototype 8968 | -5/Zhirov | Found Alien Artifact 8968 | -5/Zhirov | Identified Integrated Dissipator 8968 | -5/Zhirov | Installed Integrated Dissipator, increased core heat dissipation (+20) 8974 | -5/Zhirov | Found Alien Artifact 8974 | -5/Zhirov | Identified Transdimensional Reconstructor 8974 | -5/Zhirov | Warped through subspace 9044 | -5/Zhirov | Identified exit to Proximity Caves 9044 | -5/Zhirov | Entered Proximity Caves 9046 | -4/Proximity Caves | Reached level 23 9046 | -4/Proximity Caves | Spotter reported a threat 9111 | -4/Proximity Caves | Attracted the attention of an 0b10 checkpoint 9250 | -4/Proximity Caves | Upgraded with Power slot (x1) 9267 | -4/Proximity Caves | Upgraded with Power slot (x1) 9287 | -4/Proximity Caves | Attracted the attention of an 0b10 outpost 9370 | -4/Proximity Caves | Destroyed 8 combat bots 9384 | -4/Proximity Caves | Attacked by a faux Warlord 9665 | -4/Proximity Caves | Entered Factory 9665 | -4/Factory | Accompanied by 4 allies 9666 | -4/Factory | Identified exit to Upper Caves 9667 | -4/Factory | Identified exit to Extension 9667 | -4/Factory | Reached level 24 9740 | -4/Factory | P-70 Sage assimilated allied Veteran 7b 9815 | -4/Factory | Lost 3 allies 9885 | -4/Factory | Scrapoid reinforcements arrived 9906 | -4/Factory | Reached level 25 10057 | -4/Factory | Discovered new exit (range 5) 10058 | -4/Factory | Identified exit to Research 10121 | -4/Factory | Garrison activated, responded to threat 10220 | -4/Factory | Scrapoid reinforcements arrived 10315 | -4/Factory | Spotted B-86 Titan 10397 | -4/Factory | Reached level 26 10415 | -4/Factory | First assault squad dispatched 10417 | -4/Factory | Discovered exit to Research (range 7) 10487 | -4/Factory | Discovered exit to Extension (range 14) 10491 | -4/Factory | Entered Extension 10492 | -4/Extension | Loaded intel: 18 trap records 10602 | -4/Extension | Rescued a captive Derelict 10603 | -4/Extension | Rescued a captive Derelict 10624 | -4/Extension | Rescued a captive Derelict 10625 | -4/Extension | Rescued a captive Derelict 10660 | -4/Extension | Rescued A7 10730 | -4/Extension | Spotted B-86 Titan 10747 | -4/Extension | Spotted B-86 Titan 10758 | -4/Extension | Destroyed B-86 Titan 10767 | -4/Extension | Allies destroyed B-86 Titan 10800 | -4/Extension | Lost 4 allies 10805 | -4/Extension | Rescued a captive Derelict 10806 | -4/Extension | Rescued a captive Derelict 10816 | -4/Extension | Rescued a captive Derelict 10817 | -4/Extension | Rescued a captive Derelict 10832 | -4/Extension | Rescued a captive Derelict 10872 | -4/Extension | Discovered exit to Research (range 10) 10874 | -4/Extension | Discovered new exit (range 6) 10902 | -4/Extension | Identified exit to Cetus 10915 | -4/Extension | Destroyed 8 combat bots 11041 | -4/Extension | Entered Cetus 11041 | -4/Cetus | Accompanied by 15 allies (A7) 11043 | -4/Cetus | Reached level 27 11046 | -4/Cetus | Acquired a Cetus Manufacturing Module code from A7 11046 | -4/Cetus | Spotted Cetus Guard 11046 | -4/Cetus | Spotted Cetus Guard 11046 | -4/Cetus | Spotted Cetus Guard 11046 | -4/Cetus | Spotted Cetus Guard 11058 | -4/Cetus | Allies destroyed Cetus Guard 11060 | -4/Cetus | Destroyed Cetus Guard 11062 | -4/Cetus | Destroyed Cetus Guard 11065 | -4/Cetus | Destroyed Cetus Guard 11095 | -4/Cetus | Started Cetus Manufacturing Module 11102 | -4/Cetus | Escorted A7 to Cetus Mainframe 11120 | -4/Cetus | Manufactured an Enhanced Grunt 11145 | -4/Cetus | Manufactured an Enhanced Grunt 11170 | -4/Cetus | Manufactured an Enhanced Grunt 11195 | -4/Cetus | Manufactured an Enhanced Grunt 11220 | -4/Cetus | Manufactured an Enhanced Grunt 11276 | -4/Cetus | Discovered new exit (range 15) 11281 | -4/Cetus | Spotted Cetus Guard 11281 | -4/Cetus | Spotted Cetus Guard 11281 | -4/Cetus | Spotted Cetus Guard 11283 | -4/Cetus | Discovered exit to Research (range 16) 11283 | -4/Cetus | Spotted Cetus Guard 11288 | -4/Cetus | Destroyed Cetus Guard 11292 | -4/Cetus | Destroyed Cetus Guard 11300 | -4/Cetus | Destroyed Cetus Guard 11303 | -4/Cetus | Destroyed Cetus Guard 11304 | -4/Cetus | Met Revision 17 11338 | -4/Cetus | Upgraded with Utility slot (x1) 11353 | -4/Cetus | Identified exit to Archives 11397 | -4/Cetus | Entered Archives 11397 | -4/Archives | Accompanied by 20 allies (A7) 11402 | -4/Archives | Received a hacking code to weaken MAIN.C 11408 | -4/Archives | Discovered exit to Research (range 14) 11414 | -4/Archives | Discovered new exit (range 14) 11418 | -4/Archives | Discovered new exit (range 15) 11463 | -4/Archives | Identified exit to Hub_04(d) 11473 | -4/Archives | Build established: Commander-Sprinter 11522 | -4/Archives | Entered Hub_04(d) 11522 | -4/Hub_04(d) | Accompanied by 18 allies 11615 | -4/Hub_04(d) | Discovered exit to Research (range 14) 11685 | -4/Hub_04(d) | Lost 4 allies 11710 | -4/Hub_04(d) | Reached level 28 11729 | -4/Hub_04(d) | Discovered exit to Research (range 7) 11737 | -4/Hub_04(d) | Destroyed 7 combat bots 11741 | -4/Hub_04(d) | Discovered exit to Research (range 9) 11744 | -4/Hub_04(d) | Lost 3 allies 11797 | -4/Hub_04(d) | Discovered exit to Research (range 11) 11895 | -4/Hub_04(d) | Spotted B-86 Titan 11912 | -4/Hub_04(d) | Network Hub disabled 11936 | -4/Hub_04(d) | Spotted Lightning 11937 | -4/Hub_04(d) | Spotted Lightning 11937 | -4/Hub_04(d) | Spotted Lightning 11938 | -4/Hub_04(d) | Build established: Hacker-Sprinter 11993 | -4/Hub_04(d) | Entered Research 11996 | -3/Research | Spotted B-86 Titan 12144 | -3/Research | Reached level 29 12188 | -3/Research | Destroyed 13 combat bots 12193 | -3/Research | Revision forces began assault on 0b10 12232 | -3/Research | Met up with Revision 17++ 12317 | -3/Research | Found Exp. Target Analyzer 12409 | -3/Research | Fabricated Plasma Sword (x1) 12468 | -3/Research | Discovered new exit (range 4) 12555 | -3/Research | Fabricated Plasma Sword (x1) 12590 | -3/Research | Discovered new exit (range 13) 12593 | -3/Research | Identified exit to Armory 12667 | -3/Research | Fabricated A-27 Freighter (x1) 12693 | -3/Research | Research terminal network offline 12803 | -3/Research | Identified exit to Research 13133 | -3/Research | Spotted Striker 13136 | -3/Research | Destroyed Striker 13179 | -3/Research | Scrapoid reinforcements arrived 13210 | -3/Research | Spotted Striker 13219 | -3/Research | Destroyed Striker 13262 | -3/Research | Spotted Striker 13264 | -3/Research | Spotted Striker 13265 | -3/Research | Destroyed Striker 13269 | -3/Research | Destroyed Striker 13276 | -3/Research | Discovered exit to Research (range 13) 13319 | -3/Research | Discovered new exit (range 5) 13320 | -3/Research | Identified exit to Testing 13615 | -3/Research | Entered Testing 13615 | -3/Testing | Accompanied by 5 allies 13617 | -3/Testing | Reached level 30 13679 | -3/Testing | Spotted PH-DMGM7WO15O 13689 | -3/Testing | Rewired PH-DMGM7WO15O 13759 | -3/Testing | Scanned by Researcher 14038 | -3/Testing | Spotted Striker 14038 | -3/Testing | Spotted Striker 14041 | -3/Testing | Allies destroyed Striker 14043 | -3/Testing | Spotted Alpha 7 14043 | -3/Testing | Destroyed Striker 14054 | -3/Testing | Destroyed Alpha 7 14115 | -3/Testing | First assault squad dispatched 14137 | -3/Testing | Fabricated Plasma Sword (x1) 14154 | -3/Testing | Discovered exit to Research (range 8) 14174 | -3/Testing | Lost 4 allies 14196 | -3/Testing | Entered Research 14198 | -2/Research | Reached level 31 14330 | -2/Research | Identified exit to Quarantine 14436 | -2/Research | Reached level 32 14475 | -2/Research | Destroyed 8 combat bots 14488 | -2/Research | First assault squad dispatched 14546 | -2/Research | Garrison activated, responded to threat 14612 | -2/Research | Spotted B-90 Cyclops 14625 | -2/Research | Destroyed 7 combat bots 14659 | -2/Research | Spotted B-90 Cyclops 14661 | -2/Research | Spotted B-90 Cyclops 14664 | -2/Research | Entered Quarantine 14852 | -2/Quarantine | Discovered new exit (range 3) 14853 | -2/Quarantine | Identified exit to Access 14867 | -2/Quarantine | Found Alien Slashing Weapon 14867 | -2/Quarantine | Identified Sigix Broadsword 15011 | -2/Quarantine | Spotted Fortress 15031 | -2/Quarantine | Destroyed Fortress 15069 | -2/Quarantine | Discovered new exit (range 7) 15071 | -2/Quarantine | Identified exit to Section 7 15071 | -2/Quarantine | Entered Section 7 15073 | -2/Section 7 | Reached level 33 15081 | -2/Section 7 | Found Alien Artifact 15081 | -2/Section 7 | Identified Integrated Reactor 15081 | -2/Section 7 | Installed Integrated Reactor, increased core energy generation (+10) 15090 | -2/Section 7 | Found Exp. Core Analyzer 15330 | -2/Section 7 | Found Alien Artifact 15330 | -2/Section 7 | Identified Integrity Redistributor 15330 | -2/Section 7 | Used Integrity Redistributor, redistributed integrity from core (-30) 15424 | -2/Section 7 | Scanned by Researcher 15458 | -2/Section 7 | Destroyed 7 combat bots 15488 | -2/Section 7 | Spotted S7 Guard 15491 | -2/Section 7 | Destroyed S7 Guard 15496 | -2/Section 7 | Found Alien Artifact 15496 | -2/Section 7 | Identified Integrated Thermoelectric Network 15496 | -2/Section 7 | Installed Integrated Thermoelectric Network, gained heat-energy exchange potential 15518 | -2/Section 7 | Spotted B-90 Cyclops 15523 | -2/Section 7 | Discovered exit to Access (range 16) 15526 | -2/Section 7 | Intercept squad dispatched 15527 | -2/Section 7 | Spotted Tracker 15529 | -2/Section 7 | Spotted Tracker 15530 | -2/Section 7 | Destroyed Tracker 15532 | -2/Section 7 | Spotted Combat Programmer 15539 | -2/Section 7 | Destroyed Combat Programmer 15549 | -2/Section 7 | Destroyed Tracker 15549 | -2/Section 7 | Spotted Combat Programmer 15550 | -2/Section 7 | System corruption reached 10% 15557 | -2/Section 7 | Destroyed Combat Programmer 15678 | -2/Section 7 | Found Alien Artifact 15678 | -2/Section 7 | Identified Integrated Mediator 15678 | -2/Section 7 | Installed Integrated Mediator, increased core attachment efficiency 15804 | -2/Section 7 | Spotted S7 Guard 15809 | -2/Section 7 | Destroyed S7 Guard 15814 | -2/Section 7 | Found Alien Artifact 15814 | -2/Section 7 | Identified Core Membrane 15814 | -2/Section 7 | Installed Core Membrane, gained immunity to corruption 15859 | -2/Section 7 | First assault squad dispatched 15871 | -2/Section 7 | Core integrity fell below 50% 15923 | -2/Section 7 | Spotted Alpha 7 15923 | -2/Section 7 | Spotted Alpha 7 15925 | -2/Section 7 | Destroyed Alpha 7 15934 | -2/Section 7 | Destroyed Alpha 7 15960 | -2/Section 7 | Reached level 34 15973 | -2/Section 7 | Spotted B-99 Colossus 15983 | -2/Section 7 | Destroyed 7 combat bots 15990 | -2/Section 7 | Intercept squad dispatched 16018 | -2/Section 7 | Spotted Tracker 16019 | -2/Section 7 | Spotted Tracker 16019 | -2/Section 7 | Destroyed Tracker 16021 | -2/Section 7 | Destroyed Tracker 16070 | -2/Section 7 | Spotted Combat Programmer 16077 | -2/Section 7 | Destroyed Combat Programmer 16083 | -2/Section 7 | Spotted Combat Programmer 16087 | -2/Section 7 | Destroyed Combat Programmer 16130 | -2/Section 7 | Found Alien Artifact 16130 | -2/Section 7 | Identified Core Reset Matrix 16130 | -2/Section 7 | Used Core Reset Matrix 16134 | -2/Section 7 | Sensed 14 artifacts in vicinity 16159 | -2/Section 7 | Spotted Executioner 16166 | -2/Section 7 | Integrated with Sigix Exoskeleton 16166 | -2/Section 7 | Upgraded with Weapon slot (x1) 16196 | -2/Section 7 | Intercept squad dispatched 16218 | -2/Section 7 | Spotted Tracker 16218 | -2/Section 7 | Spotted Tracker 16227 | -2/Section 7 | Destroyed Tracker 16227 | -2/Section 7 | Destroyed Tracker 16254 | -2/Section 7 | Spotted Combat Programmer 16254 | -2/Section 7 | Spotted Combat Programmer 16263 | -2/Section 7 | Spotted Executioner 16264 | -2/Section 7 | Spotted Executioner 16348 | -2/Section 7 | Spotted Executioner 16368 | -2/Section 7 | Spotted Striker 16369 | -2/Section 7 | Spotted Investigator 16421 | -2/Section 7 | Found Exp. Core Analyzer 16437 | -2/Section 7 | Destroyed 14 combat bots 16442 | -2/Section 7 | Discovered exit to Access (range 19) 16457 | -2/Section 7 | Entered Access 16458 | -1/Access | Emitted hypermatrix ping 16458 | -1/Access | Core integrity fell below 50% 16459 | -1/Access | Reached level 35 16461 | -1/Access | Build established: Hacker-Sigix 16463 | -1/Access | Assembled emerged from beneath the floor 16781 | -1/Access | Spotted Striker 16781 | -1/Access | Spotted Striker 16781 | -1/Access | Spotted Executioner 16794 | -1/Access | Energy Cycler disabled 16815 | -1/Access | Garrison activated, responded to threat 16821 | -1/Access | Assembled emerged from beneath the floor 16830 | -1/Access | Intercept squad dispatched 16830 | -1/Access | Spotted Tracker 16830 | -1/Access | Spotted Tracker 16851 | -1/Access | Destroyed Tracker 16861 | -1/Access | Spotted Combat Programmer 16873 | -1/Access | Destroyed Combat Programmer 16878 | -1/Access | Destroyed Tracker 16886 | -1/Access | Spotted Executioner 16889 | -1/Access | Core integrity fell below 20% 16893 | -1/Access | Spotted Combat Programmer 16895 | -1/Access | Assembled emerged from beneath the floor 16899 | -1/Access | Discovered new exit (range 17) 16910 | -1/Access | Entered Command 16911 | -1/Command | Emitted hypermatrix ping 16912 | -1/Command | Reached level 36 16916 | -1/Command | Assembled emerged from beneath the floor 16940 | -1/Command | Lost 6 allies 16962 | -1/Command | Assembled emerged from beneath the floor 17043 | -1/Command | Lost 5 allies 17160 | -1/Command | First assault squad dispatched 17186 | -1/Command | Discovered new exit (range 16) 17215 | -1/Command | Spotted B-99 Colossus 17428 | -1/Command | Disengaged cave seal 17438 | -1/Command | Assembled emerged from beneath the floor 17442 | -1/Command | High security lockdown imminent 17463 | -1/Command | Disengaged cave seal 17463 | -1/Command | Assembled emerged from the dark tunnel 17522 | -1/Command | High security lockdown engaged 17550 | -1/Command | Assembled emerged from beneath the floor 17697 | -1/Command | Lost 23 allies 17701 | -1/Command | Destroyed 18 combat bots 17722 | -1/Command | Spotted Investigator 17732 | -1/Command | Reached level 37 17757 | -1/Command | Destroyed Investigator 17768 | -1/Command | Spotted Executioner 17814 | -1/Command | Spotted Executioner 17814 | -1/Command | Spotted Alpha 7 17822 | -1/Command | Upgraded with Weapon slot (x1) 17833 | -1/Command | Destroyed 14 combat bots 17861 | -1/Command | Destroyed Executioner 17867 | -1/Command | Destroyed Alpha 7 17952 | -1/Command | Lost 3 allies 17955 | -1/Command | Spotted Executioner 17955 | -1/Command | Spotted Executioner 17955 | -1/Command | Destroyed Executioner 17968 | -1/Command | Destroyed Executioner 18028 | -1/Command | Destroyed 12 combat bots 18071 | -1/Command | Spotted Striker 18097 | -1/Command | Destroyed Striker 18134 | -1/Command | Spotted Executioner 18137 | -1/Command | Spotted Striker 18142 | -1/Command | Destroyed Striker 18170 | -1/Command | Spotted Alpha 7 18171 | -1/Command | Destroyed Executioner 18171 | -1/Command | Spotted Striker 18192 | -1/Command | Destroyed 19 combat bots 18203 | -1/Command | Destroyed Striker 18213 | -1/Command | Destroyed Alpha 7 18266 | -1/Command | Spotted Striker 18280 | -1/Command | Destroyed Striker 18298 | -1/Command | Assembled emerged from beneath the floor 18315 | -1/Command | Spotted Striker 18316 | -1/Command | Destroyed Striker 18318 | -1/Command | Spotted Striker 18321 | -1/Command | Destroyed Striker 18325 | -1/Command | Spotted Striker 18335 | -1/Command | Spotted Executioner 18337 | -1/Command | Spotted Executioner 18341 | -1/Command | Spotted Executioner 18342 | -1/Command | Destroyed Striker 18353 | -1/Command | Destroyed Executioner 18363 | -1/Command | Spotted Executioner 18369 | -1/Command | Destroyed Executioner 18395 | -1/Command | Destroyed Executioner 18398 | -1/Command | Spotted Executioner 18398 | -1/Command | Spotted Striker 18398 | -1/Command | Spotted Striker 18406 | -1/Command | Spotted Striker 18406 | -1/Command | Spotted Executioner 18422 | -1/Command | Destroyed 11 combat bots 18423 | -1/Command | Destroyed Striker 18426 | -1/Command | Spotted Striker 18435 | -1/Command | Spotted Striker 18435 | -1/Command | Spotted Striker 18441 | -1/Command | Destroyed Striker 18444 | -1/Command | Destroyed Striker 18453 | -1/Command | Destroyed Striker 18487 | -1/Command | Destroyed Striker 18499 | -1/Command | Destroyed Executioner 18502 | -1/Command | Destroyed Striker 18504 | -1/Command | Reached level 38 18515 | -1/Command | Destroyed Executioner 18531 | -1/Command | Destroyed Executioner 18546 | -1/Command | Spotted Striker 18559 | -1/Command | Destroyed Striker 18580 | -1/Command | Destroyed 24 combat bots 18622 | -1/Command | Spotted Striker 18622 | -1/Command | Spotted Striker 18639 | -1/Command | Spotted Striker 18643 | -1/Command | Destroyed Striker 18672 | -1/Command | Destroyed Striker 18678 | -1/Command | Destroyed Striker 18736 | -1/Command | Destroyed 8 combat bots 18931 | -1/Command | Assembled emerged from beneath the floor 18979 | -1/Command | Lost 3 allies 19104 | -1/Command | Found Exp. Core Analyzer 19116 | -1/Command | Spotted Executioner 19116 | -1/Command | Spotted Executioner 19137 | -1/Command | Spotted B-99 Colossus 19137 | -1/Command | Destroyed Executioner 19141 | -1/Command | Destroyed Executioner 19526 | -1/Command | Assembled emerged from beneath the floor 19597 | -1/Command | Lost 4 allies 20178 | -1/Command | Destroyed 7 combat bots 20796 | -1/Command | Destroyed 9 combat bots 20889 | -1/Command | Destroyed 11 combat bots 20951 | -1/Command | Destroyed 10 combat bots 21192 | -1/Command | Destroyed 38 combat bots 21499 | -1/Command | Reached level 39 21594 | -1/Command | Destroyed 17 combat bots 21680 | -1/Command | Destroyed 9 combat bots 21719 | -1/Command | Sigix Exoskeleton integrity reduced to 80% 22340 | -1/Command | Destroyed 32 combat bots 22525 | -1/Command | Destroyed 30 combat bots 22627 | -1/Command | Destroyed 8 combat bots 22856 | -1/Command | Destroyed 9 combat bots 22937 | -1/Command | Sigix Exoskeleton integrity reduced to 60% 22967 | -1/Command | Destroyed 7 combat bots 23078 | -1/Command | Destroyed 11 combat bots 23435 | -1/Command | Destroyed 19 combat bots 23765 | -1/Command | Spotted M Guard 23766 | -1/Command | Spotted M Guard 23766 | -1/Command | Spotted Combat Programmer 23766 | -1/Command | Spotted Combat Programmer 23770 | -1/Command | Destroyed Combat Programmer 23787 | -1/Command | Destroyed Combat Programmer 23802 | -1/Command | Destroyed M Guard 23812 | -1/Command | Destroyed M Guard 23812 | -1/Command | All MAIN.C guards destroyed 24067 | -1/Command | Destroyed B-99 Colossus 24078 | -1/Command | Spotted B-99 Colossus 24092 | -1/Command | Destroyed B-99 Colossus 24105 | *** | Heading to fleet! Last Messages --------------- 24079_ Slug penetrates Wall. 24083_ Penetrated by Slug. 24083_ Slug penetrates Wall. 24086_ Knocked back. 24086_ Penetrated by Slug. 24090_ Knocked back. 24090_ Penetrated by Slug. 24090_ Slug penetrates Wall. 24091_ B-99 Colossus activates siege mode. 24092_ B-99 Colossus destroyed. 24101_ Triggered Stasis Trap. 24101_ A bubble of rippling energy engulfs the area. 24101_ Field strength at 16. 24101_ Stasis field depleted. 24102_ Triggered Stasis Trap. 24102_ A bubble of rippling energy engulfs the area. 24102_ Field strength at 16. 24102_ Stasis field depleted. Map ----- +----------------------------------------------------+ | ## ## % %# == % ############# | | % #" "#! #! == %% "#"###"##"#"" | | ########## !]######### % == % % % | | % % !%!%! % % % % % | | %% % %%]%% % % % % %% | | ###"######%########## %%% %%% %%% %%% | | ### ##### ########### """"""%%#"##+%/##+## | | ########"############ ; ##%#" % # | | # ########++++;###### % / | | # ####### ###### ###+ | | # = =####### ^ ###### ## | | # ###### ^ ##### % %%% ## % | | # "" ####### ^ ;#####""" % ##]] | | # """" ###### #####"""" ##]% | | + """" #######^ ######"""" % ## | | ### | "" ###### ^ #####"""" % * ## ! | | ### #######^ ^ ###### % ## | | ### ###### ^ % ##### % ###+ | | ### ######; ^ ^ %###### % ### | | ### #### !%!%[##########"####### | | ##############+#### *![!###### | | ############## #### ^%!=###### | | #### =! ### #### ^! ###### | | + !! ### #### ^ ###### | | # ! %%## #### "" ^ ###### ######### | | ##+##+######## #### "X ###### ######### | | ####### #### ^ ###### ######### | | + #### ^ ###### ######### | | ####### #### ^ ###### ######### | | ####### #### ###### ######### | | ""T"" ####### ###; ######%######### | | """"" ####### ######################%######### | | ############## ###################### ############ | | ############ ###################### ########### | | + ## # ############+###########! | | # ## " ! ### % #########[ | | ==# ! %+% # ! ### %%% / !%%=%!+[ | | ==# ## # % ### !% ########## | | " "" !## ##+#####+#### ! ########## | | # """" "# % %+ =!########## | | # """" # #####+##+####################### | | %" """" % % # ###################### | | #%#"/##"# # ###################### | | % # ###################### | | % # !###################### | | ################################ | | ################################ | | ################################ | | ################################ | | ################################ | +----------------------------------------------------+ Best States ------------- Heat Dissipation 190 Energy Generation 82 Energy Capacity 665 Matter Stores 300 Matter Capacity 300 Sight Range 19 Terrain Scan Density 10 Additional Mass Support 25 Armor Coverage 285 Resistance: KI 70 Resistance: TH 70 Resistance: EX 70 Resistance: EM 70 Resistance: I 70 Resistance: S 70 Resistance: P 70 Melee Speed Boost 50 Phase Shifting 10 Evasion (%) 75 Melee Accuracy 16 Target Analysis 10 Core Analysis 12 Offensive Hacking 40 Defensive Hacking 15 Item Schematics ----------------- Adv. Plasma Rifle | -2/Section 7 | Archive Imp. KE Penetrator | -2/Section 7 | Archive Robot Schematics ------------------ B-74 Champion | -2/Section 7 | Archive C-65 Expert | -2/Section 7 | Archive Fabricated ------------ Greatsword | x2 | -7/Factory Plasma Sword | x1 | -3/Research Plasma Sword | x1 | -3/Research A-27 Freighter | x1 | -3/Research | Preloaded Plasma Sword | x1 | -3/Testing Alien Tech Used ----------------- Integrated Dissipator Transdimensional Reconstructor Sigix Broadsword Integrated Reactor Integrity Redistributor Integrated Thermoelectric Network Integrated Mediator Core Membrane Core Reset Matrix Sigix Exoskeleton Sigix Sheargun Achievements -------------- Melee Specialist Treasure Hunter Challenges ------------ None RPGLIKE | -11 -10 -10 -10 -8 -7 -7 -7 -7 -5 -5 -5 -5 -4 -4 -4 -4 -4 -4 -3 -3 -2 -2 -2 -1 -1 --------- Run | Yrd Mat Min Sub Mat Fac Sto Rec Scr Fac Upp Upp Zhi Pro Fac Ext Cet Arc Hub Res Tes Res Qua Sec Acc Com Levels Raised 38 | . 1 1 1 7 4 1 . 1 4 . 1 . 1 3 . 1 . 1 1 1 2 . 2 1 4 XP Earned 61817 | 4000 2105 900 1850 10298 6495 1779 453 204 6298 1060 476 220 2307 3256 1296 389 218 1134 2480 1686 2118 844 2526 1396 6029 XP Spent 60785 | 2000 3420 . 700 8700 8030 1850 . 2600 5260 1000 . 1500 1900 1400 . 3200 . . 4100 1500 . 3300 3020 1380 5925 Upgrades 112 | 4 11 . 2 16 7 2 . 1 14 1 . 6 2 2 . 1 . . 8 2 . 5 8 6 14 Power Slot 3 | 1 . . . . . . . . . . . . 2 . . . . . . . . . . . . Propulsion Slot 4 | 1 2 . . . . . . . 1 . . . . . . . . . . . . . . . . Utility Slot 10 | 1 . . . 2 4 . . 1 1 . . . . . . 1 . . . . . . . . . Weapon Slot 5 | 1 . . . 2 . . . . . . . . . . . . . . . . . . 1 . 1 Core Integrity 37 | . . . . . . . . . 12 . . . . . . . . . . . . 2 4 6 13 Heat Dissipation 10 | . 7 . . . 3 . . . . . . . . . . . . . . . . . . . . Mass Support 3 | . . . 2 . . 1 . . . . . . . . . . . . . . . . . . . Inventory Capacity 4 | . 2 . . . . 1 . . . 1 . . . . . . . . . . . . . . . Sight Range 3 | . . . . . . . . . . . . . . . . . . . . . . . 3 . . Ranged Accuracy 4 | . . . . 4 . . . . . . . . . . . . . . . . . . . . . Melee Accuracy 4 | . . . . 4 . . . . . . . . . . . . . . . . . . . . . Hack Attack % 6 | . . . . 2 . . . . . . . . . 1 . . . . . . . 3 . . . Hack Defense % 3 | . . . . 2 . . . . . . . . . 1 . . . . . . . . . . . KI Resistance % 4 | . . . . . . . . . . . . 1 . . . . . . 2 1 . . . . . TH Resistance % 4 | . . . . . . . . . . . . 2 . . . . . . 1 1 . . . . . EX Resistance % 4 | . . . . . . . . . . . . 1 . . . . . . 3 . . . . . . KI Damage % 4 | . . . . . . . . . . . . 2 . . . . . . 2 . . . . . . Protomatter Created 23535 | . 144 . 340 854 849 237 56 . 987 239 73 179 396 1019 705 128 158 575 1055 616 649 202 1869 408 11797 Integrity Restored 29446 | . 297 72 816 1048 916 287 168 . 1034 621 219 532 844 657 691 256 . 654 1464 1160 614 606 2687 237 13566 Core 25065 | . 297 72 747 727 756 237 168 . 795 621 219 397 354 507 507 193 . 446 1005 865 361 606 2379 237 12569 Parts 4381 | . . . 69 321 160 50 . . 239 . . 135 490 150 184 63 . 208 459 295 253 . 308 . 997 Protomatter Decayed 13000 | . . . . 381 517 96 . . 480 . . . 302 1117 676 93 158 885 4348 169 294 . 356 225 2903 Game ------ Seed FusionDisruptorShield Manual? 0 Play Time 07:02:56 Cumulative 115.0 hours Start 2024.09.17 @ 16:43:16 End 2024.09.20 @ 07:09:04 Sessions 9 Manual Loads 0 Difficulty Adventurer Special Mode Winter2019/RPGLIKE Game No. 64 Rogue 0 Adventurer 64 Explorer 0 Win Type 2 Total 6 Types 2/0/2/2/0/0/0/0/0 Lore% 56 Gallery% 55 Achievement% 70 Wizard Run 0 Options --------- Layout 2 ASCII 0 Keyboard 0 Movement Numpad Keybinds 0 Fullscreen 2 Font 24/Smallcaps Map View 50x44 Zoom Use 0% Tactical HUD 1 Map Filters NONE Filters NONE Steam 1 RUN: c18faca1-a7ab-409b-83e8-5c30ca7cef5b